fUSD/lending_fUSD_20250108
["ID","MTS","AMOUNT","RATE_DAILY","PERIOD"]
[348163434,1736361041385,-1610.16,0.00010345,2]
[348163435,1736361041394,-570.47,0.00010346,2]
[348163436,1736361041403,-500.0,0.00010346,2]
[348163437,1736361041412,-500.0,0.00010346,2]
[348163438,1736361041421,-700.7,0.00010346,2]
[348163439,1736361041431,-1537.89,0.00010346,2]
[348163440,1736361041441,-909.69,0.00010346,2]
[348163441,1736361041450,-571.33,0.00010346,2]
[348163442,1736361041459,-523.0,0.00010346,2]
[348163443,1736361041468,-500.0,0.00010346,2]
[348163444,1736361041477,-2178.58,0.00010346,2]
[348163445,1736361041486,-1030.33,0.00010346,2]
[348163446,1736361041495,-500.0,0.00010346,2]
[348163447,1736361041504,-646.03,0.00010346,2]
[348163448,1736361041514,-500.0,0.00010347,2]
[348163449,1736361041523,-500.0,0.00010347,2]
[348163450,1736361041532,-507.45,0.00010347,2]
[348163451,1736361041540,-1059.33,0.00010347,2]
[348163452,1736361041550,-1131.1,0.00010347,2]
[348163453,1736361041560,-1159.0,0.00010347,2]
[348163454,1736361041572,-4894.87,0.00010347,2]
[348163455,1736361041581,-582.08,0.00010347,2]
[348163456,1736361041591,-611.95,0.00010347,2]
[348163457,1736361041600,-625.52,0.00010347,2]
[348163458,1736361041611,-659.19,0.00010347,2]
[348163459,1736361041621,-1000.0,0.00010347,2]
[348163460,1736361041630,-573.07,0.00010347,2]
[348163461,1736361041639,-515.52,0.00010347,2]
[348163462,1736361041650,-500.0,0.00010347,2]
[348163463,1736361041660,-2616.42,0.00010347,2]
[348163464,1736361041668,-500.0,0.00010347,2]
[348163465,1736361041678,-1474.36,0.00010347,2]
[348163466,1736361041687,-636.1,0.00010347,2]
[348163467,1736361041698,-1134.39,0.00010347,2]
[348163468,1736361041708,-895.0,0.00010347,2]
[348163469,1736361041717,-708.15,0.00010347,2]
[348163470,1736361041726,-775.37,0.00010412,2]
[348163471,1736361041736,-4959.1477,0.0001042,2]
[348163472,1736361041746,-1619.15,0.00010447,2]
[348163473,1736361041756,-1929.05,0.00010447,2]
[348163474,1736361041766,-1203.84,0.00010447,2]
[348163475,1736361041775,-821.05,0.00010447,2]
[348163476,1736361041785,-2825.48,0.00010447,2]
[348163477,1736361041795,-500.0,0.00010447,2]
[348163478,1736361041804,-816.5,0.00010447,2]
[348163479,1736361041814,-500.0,0.00010447,2]
[348163480,1736361041823,-1624.66,0.00010447,2]
[348163481,1736361041832,-500.0,0.00010447,2]
[348163482,1736361041842,-500.0,0.00010447,2]
[348163483,1736361041851,-500.0,0.00010447,2]
[348163484,1736361041861,-1621.92,0.00010447,2]
[348163485,1736361041871,-500.0,0.00010447,2]
[348163486,1736361041880,-500.0,0.00010447,2]
[348163487,1736361041890,-500.0,0.00010447,2]
[348163488,1736361041900,-500.0,0.00010447,2]
[348163489,1736361041910,-1262.96,0.00010462,2]
[348163490,1736361041919,-179.06,0.00010517,2]
[348163491,1736361041933,-1435.64,0.00010519,2]
[348163492,1736361041943,-3206.8,0.00010519,2]
[348163493,1736361041953,-2165.35,0.00010519,2]
[348163494,1736361041963,-500.0,0.00010519,2]
[348163495,1736361041972,-663.48,0.00010519,2]
[348163496,1736361041982,-500.0,0.00010519,2]
[348163497,1736361041991,-2678.88,0.00010519,2]
[348163498,1736361042001,-3066.94,0.00010519,2]
[348163499,1736361042011,-1218.91,0.00010519,2]
[348163500,1736361042021,-500.0,0.00010519,2]
[348163501,1736361042030,-500.0,0.00010519,2]
[348163502,1736361042039,-3513.9,0.00010519,2]
[348163503,1736361042049,-224.53,0.00010519,2]
[348163504,1736361042059,-932.08,0.00010519,2]
[348163505,1736361042069,-500.0,0.00010519,2]
[348163506,1736361042078,-634.0,0.00010519,2]
[348163507,1736361042088,-1637.65,0.00010519,2]
[348163508,1736361042097,-1172.37,0.00010519,2]
[348163509,1736361042109,-1211.97,0.00010519,2]
[348163510,1736361042118,-500.0,0.00010519,2]
[348163511,1736361042128,-3602.7,0.00010519,2]
[348163512,1736361042137,-500.85,0.0001052,2]
[348163513,1736361042147,-500.0,0.0001052,2]
[348163514,1736361042156,-500.0,0.0001052,2]
[348163515,1736361042165,-500.0,0.0001052,2]
[348163516,1736361042175,-500.0,0.0001052,2]
[348163517,1736361042185,-500.0,0.0001052,2]
[348163518,1736361042195,-500.0,0.0001052,2]
[348163519,1736361042205,-500.0,0.0001052,2]
[348163520,1736361042214,-204.0,0.0001052,2]
[348163521,1736361042224,-500.0,0.0001052,2]
[348163522,1736361042234,-500.0,0.0001052,2]
[348163523,1736361042243,-500.0,0.0001052,2]
[348163524,1736361042252,-500.0,0.0001052,2]
[348163525,1736361042262,-500.0,0.0001052,2]
[348163526,1736361042271,-500.0,0.0001052,2]
[348163527,1736361042280,-500.0,0.0001052,2]
[348163528,1736361042290,-500.0,0.0001052,2]
[348163529,1736361042299,-183.49911024,0.0001052,2]
[348163530,1736361042308,-500.0,0.0001052,2]
[348163531,1736361042318,-500.0,0.0001052,2]
[348163532,1736361042327,-500.0,0.0001052,2]
[348163533,1736361042336,-500.0,0.0001052,2]
[348163534,1736361042345,-500.0,0.0001052,2]
[348163535,1736361042358,-500.0,0.0001052,2]
[348163536,1736361042367,-500.0,0.0001052,2]
[348163537,1736361042376,-500.0,0.0001052,2]
[348163538,1736361042385,-500.0,0.0001052,2]
[348163539,1736361042394,-500.0,0.0001052,2]
[348163540,1736361042403,-500.0,0.0001052,2]
[348163541,1736361042412,-500.0,0.0001052,2]
[348163542,1736361042421,-500.0,0.0001052,2]
[348163543,1736361042431,-500.0,0.0001052,2]
[348163544,1736361042440,-599.34,0.0001052,2]
[348163545,1736361042449,-500.0,0.0001052,2]
[348163546,1736361042459,-500.0,0.0001052,2]
[348163547,1736361042468,-500.0,0.0001052,2]
[348163548,1736361042477,-556.12282354,0.0001052,2]
[348163549,1736361042487,-500.0,0.0001052,2]
[348163550,1736361042496,-500.0,0.0001052,2]
[348163551,1736361042505,-500.0,0.0001052,2]
[348163552,1736361042514,-517.88,0.0001052,2]
[348163553,1736361042523,-500.0,0.0001052,2]
[348163554,1736361042532,-500.0,0.0001052,2]
[348163555,1736361042542,-500.0,0.0001052,2]
[348163556,1736361042551,-500.0,0.0001052,2]
[348163557,1736361042560,-500.0,0.0001052,2]
[348163558,1736361042571,-500.0,0.0001052,2]
[348163559,1736361042580,-500.0,0.0001052,2]
[348163560,1736361042589,-500.0,0.0001052,2]
[348163561,1736361042599,-500.0,0.0001052,2]
[348163562,1736361042611,-1042.31,0.0001052,2]
[348163563,1736361042620,-608.13,0.0001052,2]
[348163564,1736361042630,-582.79,0.0001052,2]
[348163565,1736361042639,-841.41,0.0001052,2]
[348163566,1736361042652,-1149.41,0.0001052,2]
[348163567,1736361042663,-1678.01,0.0001052,2]
[348163568,1736361042672,-927.99,0.0001052,2]
[348163569,1736361042682,-420.0,0.00010547,2]
[348163570,1736361042691,-500.0,0.00010581,2]
[348163571,1736361042701,-500.0,0.00010581,2]
[348163572,1736361042710,-500.0,0.00010581,2]
[348163573,1736361042720,-500.0,0.00010581,2]
[348163574,1736361042729,-500.0,0.00010581,2]
[348163575,1736361042739,-500.0,0.00010581,2]
[348163576,1736361042748,-500.0,0.00010581,2]
[348163577,1736361042758,-500.0,0.00010581,2]
[348163578,1736361042767,-500.0,0.00010581,2]
[348163579,1736361042776,-504.86416809,0.00010581,2]
[348163580,1736361042785,-714.17,0.00010581,2]
[348163581,1736361042794,-503.90388993,0.00010581,2]
[348163582,1736361042803,-570.83950298,0.00010581,2]
[348163583,1736361042813,-502.82911089,0.00010581,2]
[348163584,1736361042822,-500.0,0.00010581,2]
[348163585,1736361042831,-500.0,0.00010581,2]
[348163586,1736361042841,-500.0,0.00010581,2]
[348163587,1736361042850,-515.91330971,0.00010581,2]
[348163588,1736361042861,-500.0,0.00010581,2]
[348163589,1736361042871,-500.0,0.00010581,2]
[348163590,1736361042880,-509.889051,0.00010581,2]
[348163591,1736361042890,-502.34503606,0.00010581,2]
[348163592,1736361042899,-498.63494219,0.00010581,2]
[348163593,1736361042908,-500.0,0.00010581,2]
[348163594,1736361042919,-524.58,0.00010581,2]
[348163595,1736361042929,-617.59,0.00010581,2]
[348163596,1736361042938,-500.0,0.00010581,2]
[348163597,1736361042948,-500.0,0.00010581,2]
[348163598,1736361042958,-500.0,0.00010581,2]
[348163599,1736361042967,-519.43,0.00010581,2]
[348163600,1736361042977,-500.0,0.00010581,2]
[348163601,1736361042986,-500.0,0.00010581,2]
[348163602,1736361042996,-500.0,0.00010581,2]
[348163603,1736361043006,-500.0,0.00010581,2]
[348163604,1736361043015,-596.38,0.00010581,2]
[348163605,1736361043024,-500.0,0.00010581,2]
[348163606,1736361043034,-245.35841347,0.00010581,2]
[348163607,1736361043044,-500.0,0.00010581,2]
[348163608,1736361043053,-308.28,0.00010581,2]
[348163609,1736361043063,-500.0,0.00010581,2]
[348163610,1736361043072,-500.0,0.00010581,2]
[348163611,1736361043083,-500.0,0.00010581,2]
[348163612,1736361043093,-500.0,0.00010581,2]
[348163613,1736361043103,-500.0,0.00010581,2]
[348163614,1736361043113,-500.0,0.00010581,2]
[348163615,1736361043123,-500.0,0.00010581,2]
[348163616,1736361043132,-500.0,0.00010581,2]
[348163617,1736361043142,-500.0,0.00010581,2]
[348163618,1736361043151,-500.0,0.00010581,2]
[348163619,1736361043160,-500.0,0.00010581,2]
[348163620,1736361043170,-500.0,0.00010581,2]
[348163621,1736361043179,-500.0,0.00010581,2]
[348163622,1736361043189,-500.0,0.00010581,2]
[348163623,1736361043198,-520.47,0.00010581,2]
[348163624,1736361043207,-500.0,0.00010581,2]
[348163625,1736361043217,-440.57,0.00010581,2]
[348163626,1736361043227,-537.99,0.00010581,2]
[348163627,1736361043237,-500.0,0.00010581,2]
[348163628,1736361043246,-500.0,0.00010581,2]
[348163629,1736361043255,-500.0,0.00010581,2]
[348163630,1736361043264,-500.0,0.00010581,2]
[348163632,1736361043274,-500.0,0.00010581,2]
[348163633,1736361043283,-500.0,0.00010581,2]
[348163635,1736361043293,-500.0,0.00010581,2]
[348163636,1736361043302,-500.0,0.00010581,2]
[348163637,1736361043312,-620.56,0.00010581,2]
[348163638,1736361043321,-756.73,0.00010581,2]
[348163639,1736361043330,-500.0,0.00010581,2]
[348163640,1736361043339,-500.0,0.00010581,2]
[348163641,1736361043348,-500.0,0.00010581,2]
[348163643,1736361043360,-500.0,0.00010581,2]
[348163644,1736361043370,-500.0,0.00010581,2]
[348163645,1736361043379,-500.0,0.00010581,2]
[348163646,1736361043388,-500.0,0.00010581,2]
[348163648,1736361043398,-500.0,0.00010581,2]
[348163649,1736361043408,-500.0,0.00010581,2]
[348163652,1736361043417,-500.0,0.00010581,2]
[348163654,1736361043426,-500.0,0.00010581,2]
[348163658,1736361043436,-500.0,0.00010581,2]
[348163661,1736361043445,-500.0,0.00010581,2]
[348163664,1736361043454,-500.0,0.00010581,2]
[348163666,1736361043464,-500.0,0.00010581,2]
[348163667,1736361043473,-500.0,0.00010581,2]
[348163668,1736361043484,-500.0,0.00010581,2]
[348163669,1736361043495,-500.0,0.00010581,2]
[348163670,1736361043504,-500.0,0.00010581,2]
[348163671,1736361043513,-500.0,0.00010581,2]
[348163672,1736361043524,-500.0,0.00010581,2]
[348163673,1736361043534,-500.0,0.00010581,2]
[348163674,1736361043543,-500.0,0.00010581,2]
[348163675,1736361043552,-500.0,0.00010581,2]
[348163676,1736361043562,-742.3,0.00010581,2]
[348163677,1736361043575,-2040.84,0.00010582,2]
[348163678,1736361043585,-1144.17,0.00010582,2]
[348163679,1736361043594,-2178.58,0.00010583,2]
[348163680,1736361043606,-1610.16,0.00010619,2]
[348163681,1736361043615,-570.47,0.0001062,2]
[348163682,1736361043625,-500.0,0.0001062,2]
[348163683,1736361043635,-500.0,0.0001062,2]
[348163684,1736361043645,-700.7,0.0001062,2]
[348163685,1736361043655,-1537.89,0.0001062,2]
[348163686,1736361043664,-909.69,0.0001062,2]
[348163687,1736361043674,-571.33,0.0001062,2]
[348163688,1736361043683,-523.0,0.0001062,2]
[348163689,1736361043693,-500.0,0.0001062,2]
[348163690,1736361043702,-1030.33,0.0001062,2]
[348163691,1736361043711,-500.0,0.0001062,2]
[348163692,1736361043721,-646.03,0.0001062,2]
[348163693,1736361043731,-500.0,0.00010621,2]
[348163694,1736361043740,-507.45,0.00010621,2]
[348163695,1736361043750,-1059.33,0.00010621,2]
[348163696,1736361043760,-1131.1,0.00010621,2]
[348163697,1736361043770,-1159.0,0.00010621,2]
[348163698,1736361043779,-4894.87,0.00010621,2]
[348163699,1736361043789,-582.08,0.00010621,2]
[348163700,1736361043798,-611.95,0.00010621,2]
[348163701,1736361043807,-625.52,0.00010621,2]
[348163702,1736361043816,-659.19,0.00010621,2]
[348163703,1736361043825,-1000.0,0.00010621,2]
[348163704,1736361043835,-573.07,0.00010621,2]
[348163705,1736361043844,-515.52,0.00010621,2]
[348163706,1736361043855,-500.0,0.00010621,2]
[348163707,1736361043864,-2616.42,0.00010621,2]
[348163708,1736361043874,-600.86,0.00010621,2]
[348163709,1736361043883,-1474.36,0.00010621,2]
[348163710,1736361043893,-636.1,0.00010621,2]
[348163711,1736361043902,-1134.39,0.00010621,2]
[348163712,1736361043912,-895.0,0.00010621,2]
[348163713,1736361043922,-708.15,0.00010621,2]
[348163714,1736361043933,-151.81898893,0.0001067,2]
[348163715,1736361043943,-500.0,0.0001067,2]
[348163716,1736361043953,-152.0584213,0.00010678,2]
[348163717,1736361043963,-358.61,0.000107,2]
[348163718,1736361043974,-1619.15,0.00010721,2]
[348163719,1736361043983,-1929.05,0.00010721,2]
[348163720,1736361043993,-1203.84,0.00010721,2]
[348163721,1736361044003,-821.05,0.00010721,2]
[348163722,1736361044012,-2825.48,0.00010721,2]
[348163723,1736361044022,-500.0,0.00010721,2]
[348163724,1736361044032,-816.5,0.00010721,2]
[348163725,1736361044041,-500.0,0.00010721,2]
[348163726,1736361044051,-1624.66,0.00010721,2]
[348163727,1736361044060,-500.0,0.00010721,2]
[348163728,1736361044070,-500.0,0.00010721,2]
[348163729,1736361044080,-500.0,0.00010721,2]
[348163730,1736361044089,-1621.92,0.00010721,2]
[348163731,1736361044098,-500.0,0.00010721,2]
[348163732,1736361044112,-500.0,0.00010721,2]
[348163733,1736361044121,-500.0,0.00010721,2]
[348163734,1736361044131,-500.0,0.00010721,2]
[348163735,1736361044141,-255.0,0.00010778,2]
[348163736,1736361044150,-1174.54572332,0.00010783,2]
[348163737,1736361044160,-1435.64,0.00010793,2]
[348163738,1736361044169,-3206.8,0.00010793,2]
[348163739,1736361044179,-2165.35,0.00010793,2]
[348163740,1736361044188,-500.0,0.00010793,2]
[348163755,1736361044198,-663.48,0.00010793,2]
[348163757,1736361044375,-500.0,0.00010793,2]
[348163759,1736361044385,-2678.88,0.00010793,2]
[348163761,1736361044395,-3066.94,0.00010793,2]
[348163763,1736361044404,-1218.91,0.00010793,2]
[348163765,1736361044414,-500.0,0.00010793,2]
[348163767,1736361044423,-3513.9,0.00010793,2]
[348163769,1736361044433,-500.0,0.00010793,2]
[348163771,1736361044442,-932.08,0.00010793,2]
[348163772,1736361044451,-500.0,0.00010793,2]
[348163774,1736361044460,-634.0,0.00010793,2]
[348163776,1736361044470,-1637.65,0.00010793,2]
[348163778,1736361044481,-1172.37,0.00010793,2]
[348163779,1736361044490,-1211.97,0.00010793,2]
[348163780,1736361044499,-500.0,0.00010793,2]
[348163781,1736361044507,-3602.7,0.00010793,2]
[348163782,1736361044516,-166.52052957,0.00010793,2]
[348163783,1736361044526,-500.85,0.00010794,2]
[348163784,1736361044535,-500.0,0.00010794,2]
[348163785,1736361044544,-500.0,0.00010794,2]
[348163786,1736361044553,-500.0,0.00010794,2]
[348163787,1736361044563,-500.0,0.00010794,2]
[348163789,1736361044577,-500.0,0.00010794,2]
[348163791,1736361044586,-500.0,0.00010794,2]
[348163793,1736361044596,-500.0,0.00010794,2]
[348163795,1736361044607,-500.0,0.00010794,2]
[348163796,1736361044617,-500.0,0.00010794,2]
[348163797,1736361044626,-500.0,0.00010794,2]
[348163798,1736361044635,-500.0,0.00010794,2]
[348163799,1736361044645,-500.0,0.00010794,2]
[348163800,1736361044655,-500.0,0.00010794,2]
[348163801,1736361044664,-500.0,0.00010794,2]
[348163802,1736361044673,-500.0,0.00010794,2]
[348163803,1736361044684,-500.0,0.00010794,2]
[348163804,1736361044693,-500.0,0.00010794,2]
[348163805,1736361044703,-500.0,0.00010794,2]
[348163806,1736361044712,-500.0,0.00010794,2]
[348163807,1736361044721,-500.0,0.00010794,2]
[348163808,1736361044731,-500.0,0.00010794,2]
[348163809,1736361044741,-500.0,0.00010794,2]
[348163811,1736361044750,-500.0,0.00010794,2]
[348163813,1736361044760,-500.0,0.00010794,2]
[348163815,1736361044770,-570.27034393,0.00010794,2]
[348163817,1736361044779,-500.0,0.00010794,2]
[348163820,1736361044789,-500.0,0.00010794,2]
[348163822,1736361044799,-298.14,0.00010794,2]
[348163824,1736361044808,-500.0,0.00010794,2]
[348163826,1736361044818,-500.0,0.00010794,2]
[348163828,1736361044827,-500.0,0.00010794,2]
[348163830,1736361044837,-500.0,0.00010794,2]
[348163832,1736361044847,-500.0,0.00010794,2]
[348163834,1736361044857,-500.0,0.00010794,2]
[348163836,1736361044867,-517.88,0.00010794,2]
[348163838,1736361044876,-629.74493472,0.00010794,2]
[348163840,1736361044886,-500.0,0.00010794,2]
[348163841,1736361044895,-500.0,0.00010794,2]
[348163842,1736361044905,-500.0,0.00010794,2]
[348163843,1736361044915,-500.0,0.00010794,2]
[348163844,1736361044924,-500.0,0.00010794,2]
[348163845,1736361044935,-500.0,0.00010794,2]
[348163846,1736361044945,-500.0,0.00010794,2]
[348163847,1736361044955,-1042.31,0.00010794,2]
[348163848,1736361044964,-582.79,0.00010794,2]
[348163849,1736361044974,-841.41,0.00010794,2]
[348163850,1736361044984,-1149.41,0.00010794,2]
[348163851,1736361044993,-1678.01,0.00010794,2]
[348163852,1736361045003,-927.99,0.00010794,2]
[348163853,1736361045013,-500.0,0.00010855,2]
[348163854,1736361045023,-548.18,0.00010855,2]
[348163855,1736361045033,-500.0,0.00010855,2]
[348163856,1736361045043,-500.0,0.00010855,2]
[348163857,1736361045052,-530.85,0.00010855,2]
[348163858,1736361045062,-599.81735687,0.00010855,2]
[348163859,1736361045071,-581.56,0.00010855,2]
[348163860,1736361045081,-500.0,0.00010855,2]
[348163861,1736361045090,-714.17,0.00010855,2]
[348163862,1736361045099,-500.0,0.00010855,2]
[348163863,1736361045110,-500.0,0.00010855,2]
[348163864,1736361045120,-500.0,0.00010855,2]
[348163865,1736361045129,-500.0,0.00010855,2]
[348163866,1736361045139,-500.0,0.00010855,2]
[348163867,1736361045148,-524.58,0.00010855,2]
[348163868,1736361045158,-617.59,0.00010855,2]
[348163869,1736361045167,-500.0,0.00010855,2]
[348163870,1736361045176,-500.0,0.00010855,2]
[348163871,1736361045186,-519.43,0.00010855,2]
[348163872,1736361045195,-500.0,0.00010855,2]
[348163873,1736361045204,-500.0,0.00010855,2]
[348163874,1736361045214,-631.1601043,0.00010855,2]
[348163875,1736361045223,-596.38,0.00010855,2]
[348163876,1736361045233,-500.0,0.00010855,2]
[348163877,1736361045242,-500.0,0.00010855,2]
[348163878,1736361045252,-500.0,0.00010855,2]
[348163879,1736361045261,-500.0,0.00010855,2]
[348163880,1736361045271,-500.0,0.00010855,2]
[348163881,1736361045280,-500.0,0.00010855,2]
[348163882,1736361045289,-500.0,0.00010855,2]
[348163883,1736361045299,-500.0,0.00010855,2]
[348163884,1736361045308,-500.0,0.00010855,2]
[348163885,1736361045317,-500.0,0.00010855,2]
[348163886,1736361045326,-500.0,0.00010855,2]
[348163887,1736361045335,-500.0,0.00010855,2]
[348163888,1736361045345,-500.0,0.00010855,2]
[348163889,1736361045355,-500.0,0.00010855,2]
[348163890,1736361045364,-500.0,0.00010855,2]
[348163891,1736361045374,-500.0,0.00010855,2]
[348163892,1736361045383,-520.47,0.00010855,2]
[348163893,1736361045393,-500.0,0.00010855,2]
[348163894,1736361045402,-537.99,0.00010855,2]
[348163895,1736361045412,-500.0,0.00010855,2]
[348163896,1736361045421,-500.0,0.00010855,2]
[348163897,1736361045430,-500.0,0.00010855,2]
[348163898,1736361045440,-500.0,0.00010855,2]
[348163899,1736361045449,-500.0,0.00010855,2]
[348163900,1736361045458,-500.0,0.00010855,2]
[348163901,1736361045468,-500.0,0.00010855,2]
[348163902,1736361045477,-620.56,0.00010855,2]
[348163903,1736361045487,-500.0,0.00010855,2]
[348163904,1736361045496,-756.73,0.00010855,2]
[348163905,1736361045505,-500.0,0.00010855,2]
[348163906,1736361045514,-500.0,0.00010855,2]
[348163907,1736361045524,-500.0,0.00010855,2]
[348163908,1736361045534,-500.0,0.00010855,2]
[348163909,1736361045543,-500.0,0.00010855,2]
[348163910,1736361045553,-500.0,0.00010855,2]
[348163911,1736361045564,-500.0,0.00010855,2]
[348163912,1736361045577,-500.0,0.00010855,2]
[348163913,1736361045586,-500.0,0.00010855,2]
[348163914,1736361045598,-500.0,0.00010855,2]
[348163915,1736361045610,-500.0,0.00010855,2]
[348163916,1736361045619,-500.0,0.00010855,2]
[348163917,1736361045628,-500.0,0.00010855,2]
[348163918,1736361045638,-500.0,0.00010855,2]
[348163919,1736361045648,-500.0,0.00010855,2]
[348163920,1736361045657,-500.0,0.00010855,2]
[348163921,1736361045666,-500.0,0.00010855,2]
[348163922,1736361045676,-500.0,0.00010855,2]
[348163923,1736361045686,-500.0,0.00010855,2]
[348163924,1736361045696,-500.0,0.00010855,2]
[348163925,1736361045705,-500.0,0.00010855,2]
[348163926,1736361045715,-500.0,0.00010855,2]
[348163927,1736361045725,-500.0,0.00010855,2]
[348163928,1736361045735,-742.3,0.00010855,2]
[348163929,1736361045746,-2040.84,0.00010856,2]
[348163930,1736361045755,-1144.17,0.00010856,2]
[348163931,1736361045767,-500.0,0.00010893,2]
[348163932,1736361045779,-500.0,0.00010893,2]
[348163933,1736361045788,-500.0,0.00010893,2]
[348163934,1736361045799,-253.85,0.00010893,2]
[348163935,1736361045809,-500.0,0.00010893,2]
[348163936,1736361045818,-500.0,0.00010893,2]
[348163937,1736361045828,-500.0,0.00010893,2]
[348163938,1736361045839,-500.0,0.00010893,2]
[348163939,1736361045848,-500.0,0.00010893,2]
[348163940,1736361045860,-500.0,0.00010893,2]
[348163941,1736361045870,-650.17,0.00010893,2]
[348163942,1736361045879,-297.27292632,0.00010893,2]
[348163943,1736361045889,-500.0,0.00010893,2]
[348163944,1736361045898,-208.09726324,0.00010893,2]
[348163945,1736361045908,-1257.3,0.00010893,2]
[348163946,1736361045918,-500.0,0.00010893,2]
[348163947,1736361045930,-500.0,0.00010893,2]
[348163948,1736361045940,-703.55,0.00010893,2]
[348163949,1736361045950,-493.161191,0.00010893,2]
[348163950,1736361045960,-525.35,0.00010893,2]
[348163951,1736361045970,-500.0,0.00010893,2]
[348163952,1736361045980,-161.062745,0.00010893,2]
[348163953,1736361045990,-156.728286,0.00010893,2]
[348163954,1736361046000,-500.0,0.00010893,2]
[348163955,1736361046010,-400.74,0.00010893,2]
[348163956,1736361046019,-500.0,0.00010893,2]
[348163957,1736361046028,-500.0,0.00010893,2]
[348163958,1736361046039,-548.498834,0.00010893,2]
[348163959,1736361046049,-500.0,0.00010893,2]
[348163960,1736361046058,-1533.29,0.00010893,2]
[348163961,1736361046068,-500.0,0.00010893,2]
[348163962,1736361046077,-500.0,0.00010893,2]
[348163963,1736361046087,-157.00009,0.00010893,2]
[348163964,1736361046096,-500.0,0.00010893,2]
[348163965,1736361046107,-500.0,0.00010893,2]
[348163966,1736361046117,-500.0,0.00010893,2]
[348163967,1736361046126,-500.0,0.00010893,2]
[348163968,1736361046136,-500.0,0.00010893,2]
[348163969,1736361046145,-175.45,0.00010893,2]
[348163970,1736361046155,-500.0,0.00010893,2]
[348163971,1736361046164,-500.0,0.00010893,2]
[348163972,1736361046174,-336.78,0.00010893,2]
[348163973,1736361046183,-500.0,0.00010893,2]
[348163974,1736361046194,-500.0,0.00010893,2]
[348163975,1736361046204,-500.0,0.00010893,2]
[348163976,1736361046213,-500.0,0.00010893,2]
[348163977,1736361046223,-201.12237948,0.00010893,2]
[348163978,1736361046232,-500.0,0.00010893,2]
[348163979,1736361046242,-1687.71,0.00010893,2]
[348163980,1736361046251,-500.0,0.00010893,2]
[348163981,1736361046260,-500.0,0.00010893,2]
[348163982,1736361046269,-500.0,0.00010893,2]
[348163983,1736361046279,-500.0,0.00010893,2]
[348163984,1736361046288,-500.0,0.00010893,2]
[348163985,1736361046299,-500.0,0.00010893,2]
[348163986,1736361046308,-500.0,0.00010893,2]
[348163987,1736361046318,-500.0,0.00010893,2]
[348163988,1736361046328,-500.0,0.00010893,2]
[348163989,1736361046337,-500.0,0.00010893,2]
[348163990,1736361046347,-500.0,0.00010893,2]
[348163992,1736361046359,-500.0,0.00010893,2]
[348163993,1736361046368,-500.0,0.00010893,2]
[348163994,1736361046378,-150.984529,0.00010893,2]